[Event "Early-Titled-Tuesday-Blitz-January-30-2024"]
[Site "Chess.com"]
[Date "2024.01.30"]
[Round "1"]
[White "ljm509"]
[Black "FM_VS99"]
[Result "1-0"]
[WhiteElo "2019"]
[BlackElo "2546"]
[TimeControl "180+1"]
[EndTime "8:07:47 PST"]
[Termination "ljm509 won by resignation"]

1. e4 {[%clk 0:02:55.9]} 1... c5 {[%clk 0:02:59.6]} 2. Nf3 {[%clk 0:02:55.8]}
2... g6 {[%clk 0:02:59.9]} 3. d4 {[%clk 0:02:55.4]} 3... cxd4 {[%clk 0:02:59.5]}
4. Qxd4 {[%clk 0:02:54.9]} 4... Nf6 {[%clk 0:02:59.8]} 5. Nc3 {[%clk 0:02:53.3]}
5... Nc6 {[%clk 0:02:58.8]} 6. Qd3 {[%clk 0:02:52]} 6... d6 {[%clk 0:02:52.8]}
7. h3 {[%clk 0:02:51.1]} 7... Bg7 {[%clk 0:02:52.7]} 8. Be3 {[%clk 0:02:49.7]}
8... O-O {[%clk 0:02:51.2]} 9. Be2 {[%clk 0:02:49.4]} 9... Bd7 {[%clk
0:02:48.4]} 10. O-O {[%clk 0:02:48.6]} 10... Rc8 {[%clk 0:02:47.6]} 11. a3
{[%clk 0:02:47.1]} 11... a6 {[%clk 0:02:29.2]} 12. Qd2 {[%clk 0:02:38.2]} 12...
Na5 {[%clk 0:02:24.9]} 13. Bh6 {[%clk 0:02:31.7]} 13... Qb6 {[%clk 0:02:19.3]}
14. Rab1 {[%clk 0:02:13.1]} 14... Be6 {[%clk 0:02:04.2]} 15. Bxg7 {[%clk
0:01:56.9]} 15... Kxg7 {[%clk 0:02:03.6]} 16. Bd3 {[%clk 0:01:29.1]} 16... Rfd8
{[%clk 0:01:55.3]} 17. Qe1 {[%clk 0:01:26.4]} 17... Nd7 {[%clk 0:01:44.8]} 18.
Nd5 {[%clk 0:01:22.3]} 18... Bxd5 {[%clk 0:01:24]} 19. exd5 {[%clk 0:01:23.2]}
19... Re8 {[%clk 0:01:24]} 20. b3 {[%clk 0:01:10]} 20... Nf6 {[%clk 0:01:16]}
21. c4 {[%clk 0:01:08.3]} 21... Qc7 {[%clk 0:00:49.6]} 22. Nd2 {[%clk
0:00:55.1]} 22... b6 {[%clk 0:00:47.3]} 23. b4 {[%clk 0:00:52.7]} 23... Nb7
{[%clk 0:00:46.7]} 24. Rc1 {[%clk 0:00:53.1]} 24... a5 {[%clk 0:00:45.8]} 25.
Qe3 {[%clk 0:00:48.5]} 25... axb4 {[%clk 0:00:43.4]} 26. axb4 {[%clk 0:00:48.1]}
26... Ra8 {[%clk 0:00:44.1]} 27. Qd4 {[%clk 0:00:43.1]} 27... Ra3 {[%clk
0:00:38.7]} 28. Ne4 {[%clk 0:00:40.8]} 28... Rea8 {[%clk 0:00:27.2]} 29. Rfe1
{[%clk 0:00:36.7]} 29... Rb3 {[%clk 0:00:26]} 30. Rb1 {[%clk 0:00:21.7]} 30...
Raa3 {[%clk 0:00:24.9]} 31. Rxb3 {[%clk 0:00:20.7]} 31... Rxb3 {[%clk
0:00:25.8]} 32. g4 {[%clk 0:00:11.4]} 32... h6 {[%clk 0:00:16.2]} 33. h4 {[%clk
0:00:11]} 33... Kg8 {[%clk 0:00:06.6]} 34. Nxf6+ {[%clk 0:00:10]} 34... exf6
{[%clk 0:00:07.5]} 35. Qxf6 {[%clk 0:00:09.9]} 35... Rxd3 {[%clk 0:00:02.4]} 36.
Re8+ {[%clk 0:00:07.1]} 1-0

[Event "Early-Titled-Tuesday-Blitz-January-30-2024"]
[Site "Chess.com"]
[Date "2024.01.30"]
[Round "1"]
[White "brm72"]
[Black "NastyaHn"]
[Result "1-0"]
[WhiteElo "2687"]
[BlackElo "2366"]
[TimeControl "180+1"]
[EndTime "8:07:48 PST"]
[Termination "brm72 won on time"]

1. d4 {[%clk 0:03:00.9]} 1... d5 {[%clk 0:02:59]} 2. c4 {[%clk 0:03:01.1]} 2...
e6 {[%clk 0:02:58.6]} 3. Nf3 {[%clk 0:03:01.5]} 3... Nf6 {[%clk 0:02:58.3]} 4.
g3 {[%clk 0:03:02.1]} 4... Be7 {[%clk 0:02:55.9]} 5. Bg2 {[%clk 0:03:02.1]} 5...
O-O {[%clk 0:02:56.1]} 6. O-O {[%clk 0:03:02.7]} 6... dxc4 {[%clk 0:02:56.3]} 7.
Qc2 {[%clk 0:03:03.3]} 7... a6 {[%clk 0:02:56.2]} 8. a4 {[%clk 0:03:02.2]} 8...
Bd7 {[%clk 0:02:56.3]} 9. Rd1 {[%clk 0:03:02.3]} 9... Bc6 {[%clk 0:02:54.5]} 10.
Qxc4 {[%clk 0:03:02.5]} 10... Nbd7 {[%clk 0:02:46.6]} 11. Nc3 {[%clk 0:03:01.8]}
11... a5 {[%clk 0:02:37.5]} 12. Qd3 {[%clk 0:02:51.5]} 12... Bxf3 {[%clk
0:02:30.6]} 13. Bxf3 {[%clk 0:02:49]} 13... c6 {[%clk 0:02:28.9]} 14. Bf4 {[%clk
0:02:34.8]} 14... Nd5 {[%clk 0:02:14.8]} 15. e4 {[%clk 0:02:27.2]} 15... Nxf4
{[%clk 0:02:12.6]} 16. gxf4 {[%clk 0:02:28.1]} 16... Nf6 {[%clk 0:01:46.1]} 17.
Kh1 {[%clk 0:02:09.6]} 17... Qc7 {[%clk 0:01:38.9]} 18. Qe3 {[%clk 0:02:01]}
18... Rfd8 {[%clk 0:01:32.6]} 19. Rac1 {[%clk 0:01:08]} 19... Qb6 {[%clk
0:01:25.7]} 20. Ne2 {[%clk 0:01:06.6]} 20... Rd7 {[%clk 0:00:57.9]} 21. b3
{[%clk 0:00:55.3]} 21... Rad8 {[%clk 0:00:56.7]} 22. Rd3 {[%clk 0:00:55.1]}
22... Qb4 {[%clk 0:00:46.6]} 23. Rcd1 {[%clk 0:00:42.9]} 23... Bf8 {[%clk
0:00:45.8]} 24. Ng3 {[%clk 0:00:42.9]} 24... Qb6 {[%clk 0:00:19.3]} 25. Kg2
{[%clk 0:00:42.2]} 25... Qb4 {[%clk 0:00:18.9]} 26. f5 {[%clk 0:00:41.6]} 26...
exf5 {[%clk 0:00:15.6]} 27. Nxf5 {[%clk 0:00:42.5]} 27... g6 {[%clk 0:00:15.6]}
28. Qg5 {[%clk 0:00:36.9]} 28... Bg7 {[%clk 0:00:12.5]} 29. Nxg7 {[%clk
0:00:33.6]} 29... Kxg7 {[%clk 0:00:12.5]} 30. d5 {[%clk 0:00:25.5]} 30... cxd5
{[%clk 0:00:12.4]} 31. exd5 {[%clk 0:00:26.4]} 31... Qd6 {[%clk 0:00:11.1]} 32.
h4 {[%clk 0:00:26]} 32... h6 {[%clk 0:00:11.4]} 33. Qd2 {[%clk 0:00:25.6]} 33...
h5 {[%clk 0:00:11.4]} 34. Qxa5 {[%clk 0:00:25.6]} 34... Re8 {[%clk 0:00:09.7]}
35. Qc3 {[%clk 0:00:25.6]} 35... Rde7 {[%clk 0:00:09.7]} 36. b4 {[%clk
0:00:25.5]} 36... Rc7 {[%clk 0:00:09.4]} 37. Qd4 {[%clk 0:00:25.3]} 37... Kh7
{[%clk 0:00:06.9]} 38. a5 {[%clk 0:00:24.5]} 38... Nd7 {[%clk 0:00:06.8]} 39.
Re3 {[%clk 0:00:18.1]} 39... Rcc8 {[%clk 0:00:05.9]} 40. Rde1 {[%clk 0:00:17.6]}
40... Rxe3 {[%clk 0:00:04.8]} 41. Rxe3 {[%clk 0:00:18.5]} 41... Kh6 {[%clk
0:00:03.3]} 42. b5 {[%clk 0:00:17.5]} 42... Ra8 {[%clk 0:00:03.6]} 43. Qa4
{[%clk 0:00:14.6]} 43... Nc5 {[%clk 0:00:03.3]} 44. Qb4 {[%clk 0:00:14.3]} 44...
Rc8 {[%clk 0:00:02.1]} 45. b6 {[%clk 0:00:12.1]} 1-0

[Event "Early-Titled-Tuesday-Blitz-January-30-2024"]
[Site "Chess.com"]
[Date "2024.01.30"]
[Round "1"]
[White "mistrzemi"]
[Black "Alen_Yeremyann"]
[Result "0-1"]
[WhiteElo "2408"]
[BlackElo "2744"]
[TimeControl "180+1"]
[EndTime "8:07:51 PST"]
[Termination "Alen_Yeremyann won by resignation"]

1. e4 {[%clk 0:03:00.9]} 1... c5 {[%clk 0:03:00.1]} 2. Nf3 {[%clk 0:03:00.4]}
2... Nc6 {[%clk 0:03:00.7]} 3. Bb5 {[%clk 0:02:59.3]} 3... e6 {[%clk 0:02:59.7]}
4. O-O {[%clk 0:02:56.1]} 4... Nge7 {[%clk 0:02:59.8]} 5. Re1 {[%clk 0:02:56.7]}
5... a6 {[%clk 0:02:59.9]} 6. Bf1 {[%clk 0:02:56.6]} 6... d5 {[%clk 0:02:59.8]}
7. exd5 {[%clk 0:02:56]} 7... Nxd5 {[%clk 0:03:00.5]} 8. d4 {[%clk 0:02:55.7]}
8... cxd4 {[%clk 0:02:58.8]} 9. Nxd4 {[%clk 0:02:56.6]} 9... Bd7 {[%clk
0:02:59.5]} 10. c4 {[%clk 0:02:53.5]} 10... Nf6 {[%clk 0:02:59]} 11. Nc3 {[%clk
0:02:52.6]} 11... Be7 {[%clk 0:02:57.3]} 12. Bf4 {[%clk 0:02:49.3]} 12... O-O
{[%clk 0:02:54.2]} 13. Nf3 {[%clk 0:02:45.5]} 13... Qb6 {[%clk 0:02:46.6]} 14.
Qc2 {[%clk 0:02:42.4]} 14... Rfd8 {[%clk 0:02:40.8]} 15. Rad1 {[%clk 0:02:41.9]}
15... Be8 {[%clk 0:02:40.6]} 16. a3 {[%clk 0:02:37.3]} 16... Rac8 {[%clk
0:02:21.9]} 17. b4 {[%clk 0:02:34.9]} 17... Nd4 {[%clk 0:01:56]} 18. Nxd4 {[%clk
0:02:28.4]} 18... Rxd4 {[%clk 0:01:56.9]} 19. c5 {[%clk 0:02:17.5]} 19... Qd8
{[%clk 0:01:56.2]} 20. Be5 {[%clk 0:02:11.5]} 20... Rd7 {[%clk 0:01:44.2]} 21.
Na4 {[%clk 0:02:01.2]} 21... Nd5 {[%clk 0:01:41.6]} 22. Qb3 {[%clk 0:01:44.4]}
22... Bf6 {[%clk 0:01:36.8]} 23. Bg3 {[%clk 0:01:37.3]} 23... h6 {[%clk
0:01:20.1]} 24. b5 {[%clk 0:01:37.2]} 24... Qa5 {[%clk 0:01:09.5]} 25. Bd6
{[%clk 0:01:06.7]} 25... axb5 {[%clk 0:00:58.2]} 26. Qxb5 {[%clk 0:01:03.5]}
26... Qxb5 {[%clk 0:00:54.5]} 27. Bxb5 {[%clk 0:01:04.1]} 27... Rxd6 {[%clk
0:00:55.1]} 28. Bxe8 {[%clk 0:01:04.7]} 28... Ra6 {[%clk 0:00:45]} 29. Bb5
{[%clk 0:01:04.1]} 29... Ra5 {[%clk 0:00:45.1]} 30. Rb1 {[%clk 0:00:57.8]} 30...
Be7 {[%clk 0:00:35.9]} 31. Rec1 {[%clk 0:00:56.1]} 31... Rd8 {[%clk 0:00:25.4]}
32. g3 {[%clk 0:00:49.9]} 32... Nc7 {[%clk 0:00:25.1]} 33. c6 {[%clk 0:00:35.4]}
33... bxc6 {[%clk 0:00:15.3]} 34. Bxc6 {[%clk 0:00:35.2]} 34... Nd5 {[%clk
0:00:14.3]} 35. Rb3 {[%clk 0:00:18]} 35... Bf6 {[%clk 0:00:12.3]} 36. Bxd5
{[%clk 0:00:17.2]} 36... Raxd5 {[%clk 0:00:13.2]} 37. Rc2 {[%clk 0:00:15.3]}
37... Bd4 {[%clk 0:00:13.8]} 38. Kg2 {[%clk 0:00:14.5]} 38... h5 {[%clk
0:00:14]} 39. Nb6 {[%clk 0:00:13.9]} 39... R5d6 {[%clk 0:00:12.9]} 40. Nc4
{[%clk 0:00:13.9]} 40... Rc6 {[%clk 0:00:13.6]} 41. Ne3 {[%clk 0:00:13]} 41...
Rxc2 {[%clk 0:00:10.6]} 42. Nxc2 {[%clk 0:00:13.9]} 42... Bc5 {[%clk 0:00:11.5]}
43. Ne3 {[%clk 0:00:13.7]} 43... Rd2 {[%clk 0:00:11.2]} 44. Nc4 {[%clk
0:00:13.9]} 44... Rxf2+ {[%clk 0:00:11]} 45. Kh3 {[%clk 0:00:13.8]} 45... Rc2
{[%clk 0:00:11.7]} 46. Ne5 {[%clk 0:00:12.9]} 46... Bg1 {[%clk 0:00:10.9]} 47.
g4 {[%clk 0:00:12.4]} 47... Bxh2 {[%clk 0:00:10]} 48. gxh5 {[%clk 0:00:11.6]}
48... Bxe5 {[%clk 0:00:10.1]} 49. Rb8+ {[%clk 0:00:12.5]} 49... Bxb8 {[%clk
0:00:09.4]} 0-1

[Event "Early-Titled-Tuesday-Blitz-January-30-2024"]
[Site "Chess.com"]
[Date "2024.01.30"]
[Round "1"]
[White "almaguerjm"]
[Black "Legendinunknown"]
[Result "0-1"]
[WhiteElo "2463"]
[BlackElo "2818"]
[TimeControl "180+1"]
[EndTime "8:07:52 PST"]
[Termination "Legendinunknown won by resignation"]

1. e4 {[%clk 0:02:47.4]} 1... e5 {[%clk 0:02:58.4]} 2. Nf3 {[%clk 0:02:47.4]}
2... Nc6 {[%clk 0:02:58.3]} 3. Bc4 {[%clk 0:02:46.5]} 3... d6 {[%clk 0:02:58.3]}
4. d4 {[%clk 0:02:41.8]} 4... Nf6 {[%clk 0:02:57.1]} 5. dxe5 {[%clk 0:02:36.4]}
5... dxe5 {[%clk 0:02:58]} 6. Qxd8+ {[%clk 0:02:35.9]} 6... Nxd8 {[%clk
0:02:57.8]} 7. Nxe5 {[%clk 0:02:35]} 7... Bd6 {[%clk 0:02:58.3]} 8. Nd3 {[%clk
0:02:33.3]} 8... Nxe4 {[%clk 0:02:58.7]} 9. O-O {[%clk 0:02:33.4]} 9... Be6
{[%clk 0:02:58.8]} 10. Bxe6 {[%clk 0:02:27.9]} 10... Nxe6 {[%clk 0:02:59.7]} 11.
Re1 {[%clk 0:02:27.2]} 11... Nf6 {[%clk 0:02:57.6]} 12. Nc3 {[%clk 0:02:24.9]}
12... c6 {[%clk 0:02:51.8]} 13. Bg5 {[%clk 0:02:23.5]} 13... Be7 {[%clk
0:02:50.5]} 14. Bxf6 {[%clk 0:02:21.4]} 14... Bxf6 {[%clk 0:02:51.3]} 15. Nf4
{[%clk 0:02:21.7]} 15... O-O-O {[%clk 0:02:45.8]} 16. Nxe6 {[%clk 0:02:18.9]}
16... fxe6 {[%clk 0:02:46.6]} 17. Rxe6 {[%clk 0:02:18.1]} 17... Rd2 {[%clk
0:02:44.9]} 18. Ne4 {[%clk 0:02:13.6]} 18... Rxc2 {[%clk 0:02:41.7]} 19. Nxf6
{[%clk 0:02:12.9]} 19... gxf6 {[%clk 0:02:42.6]} 20. Rxf6 {[%clk 0:02:08.8]}
20... Rxb2 {[%clk 0:02:41.4]} 21. Rf7 {[%clk 0:02:08.1]} 21... a5 {[%clk
0:02:36.1]} 22. g3 {[%clk 0:02:04.1]} 22... a4 {[%clk 0:02:35.8]} 23. h4 {[%clk
0:01:58]} 23... h5 {[%clk 0:02:33.4]} 24. Rf5 {[%clk 0:01:51.8]} 24... b5 {[%clk
0:02:31.3]} 25. Rf7 {[%clk 0:01:45.3]} 25... Rd8 {[%clk 0:02:29.7]} 26. Rc1
{[%clk 0:01:39.5]} 26... Rd6 {[%clk 0:02:28.6]} 27. Re1 {[%clk 0:01:38.4]} 27...
Rd7 {[%clk 0:02:26]} 28. Rf6 {[%clk 0:01:31.5]} 28... Kb7 {[%clk 0:02:23.8]} 29.
Ra1 {[%clk 0:01:21]} 29... Rdd2 {[%clk 0:02:20.8]} 30. g4 {[%clk 0:01:10.5]}
30... hxg4 {[%clk 0:02:14.2]} 31. h5 {[%clk 0:01:10.9]} 31... g3 {[%clk
0:02:14.4]} 32. Rc1 {[%clk 0:00:59.5]} 32... gxf2+ {[%clk 0:01:53.3]} 33. Kf1
{[%clk 0:00:58.7]} 33... Rdc2 {[%clk 0:01:47.2]} 34. Rxc2 {[%clk 0:00:53.8]}
34... Rxc2 {[%clk 0:01:47.4]} 35. h6 {[%clk 0:00:53.2]} 35... Rc1+ {[%clk
0:01:35.7]} 36. Kxf2 {[%clk 0:00:48.4]} 36... Rh1 {[%clk 0:01:29.3]} 37. Rf7+
{[%clk 0:00:42]} 37... Kb6 {[%clk 0:01:27.8]} 38. h7 {[%clk 0:00:42.6]} 38... b4
{[%clk 0:01:27]} 39. Kg2 {[%clk 0:00:35.3]} 39... Rh6 {[%clk 0:01:19.2]} 40. Kg3
{[%clk 0:00:32.6]} 40... Kb5 {[%clk 0:01:13.2]} 41. Kg4 {[%clk 0:00:28.5]} 41...
c5 {[%clk 0:01:10.8]} 42. Kg5 {[%clk 0:00:27.4]} 42... Rh2 {[%clk 0:01:09.7]}
43. Kg6 {[%clk 0:00:26.7]} 43... b3 {[%clk 0:00:42.8]} 44. a3 {[%clk 0:00:20]}
44... Kc4 {[%clk 0:00:32.6]} 45. Rf4+ {[%clk 0:00:14.4]} 45... Kc3 {[%clk
0:00:31.3]} 46. Rf3+ {[%clk 0:00:13.5]} 46... Kd4 {[%clk 0:00:29.3]} 47. Rf5
{[%clk 0:00:11.9]} 47... Rxh7 {[%clk 0:00:27.3]} 0-1

[Event "Early-Titled-Tuesday-Blitz-January-30-2024"]
[Site "Chess.com"]
[Date "2024.01.30"]
[Round "1"]
[White "ilya2700"]
[Black "CarlosjPineror"]
[Result "0-1"]
[WhiteElo "2335"]
[BlackElo "2658"]
[TimeControl "180+1"]
[EndTime "8:07:52 PST"]
[Termination "CarlosjPineror won by resignation"]

1. e4 {[%clk 0:02:54.9]} 1... c5 {[%clk 0:02:59.8]} 2. c4 {[%clk 0:02:54.9]}
2... e6 {[%clk 0:03:00]} 3. Ne2 {[%clk 0:02:53.7]} 3... a6 {[%clk 0:02:59.9]} 4.
d4 {[%clk 0:02:53.4]} 4... cxd4 {[%clk 0:02:59.7]} 5. Nxd4 {[%clk 0:02:54.3]}
5... Qc7 {[%clk 0:03:00.3]} 6. Nc3 {[%clk 0:02:54.1]} 6... Nf6 {[%clk
0:03:00.7]} 7. Be2 {[%clk 0:02:50.3]} 7... b6 {[%clk 0:03:00.2]} 8. Be3 {[%clk
0:02:50]} 8... Bb7 {[%clk 0:03:00.7]} 9. f3 {[%clk 0:02:46.9]} 9... d6 {[%clk
0:03:01.1]} 10. O-O {[%clk 0:02:44.6]} 10... Nbd7 {[%clk 0:03:01.7]} 11. Qd2
{[%clk 0:02:43.8]} 11... Be7 {[%clk 0:03:02.2]} 12. Rad1 {[%clk 0:02:42.5]}
12... Rc8 {[%clk 0:03:00.9]} 13. b3 {[%clk 0:02:41.8]} 13... O-O {[%clk
0:03:01]} 14. Bd3 {[%clk 0:02:34.1]} 14... b5 {[%clk 0:03:00.9]} 15. Rc1 {[%clk
0:02:27.8]} 15... b4 {[%clk 0:02:18.6]} 16. Nce2 {[%clk 0:02:24.1]} 16... a5
{[%clk 0:02:07.3]} 17. Nb5 {[%clk 0:02:21.1]} 17... Qb8 {[%clk 0:02:06.8]} 18.
Bb1 {[%clk 0:02:13]} 18... Nc5 {[%clk 0:02:04.4]} 19. Qc2 {[%clk 0:02:07.6]}
19... Ba6 {[%clk 0:02:01.9]} 20. Nbd4 {[%clk 0:02:03.2]} 20... Rfd8 {[%clk
0:02:01.4]} 21. Rcd1 {[%clk 0:02:02.1]} 21... g6 {[%clk 0:01:58.7]} 22. f4
{[%clk 0:01:52.9]} 22... Ncxe4 {[%clk 0:01:56.3]} 23. Qb2 {[%clk 0:01:37.2]}
23... Bf8 {[%clk 0:01:34]} 24. Nf3 {[%clk 0:01:24.8]} 24... Bg7 {[%clk
0:01:32.8]} 25. Bd4 {[%clk 0:01:24.9]} 25... e5 {[%clk 0:00:57]} 26. fxe5 {[%clk
0:01:20.4]} 26... dxe5 {[%clk 0:00:57.3]} 27. Bxe5 {[%clk 0:01:19.7]} 27... Qb6+
{[%clk 0:00:57.6]} 28. Bd4 {[%clk 0:01:16]} 28... Rxd4 {[%clk 0:00:53.2]} 29.
Nexd4 {[%clk 0:01:12.9]} 29... Nc3 {[%clk 0:00:50.2]} 30. Rde1 {[%clk
0:01:10.8]} 30... Ng4 {[%clk 0:00:48.5]} 31. Qd2 {[%clk 0:00:55.5]} 31... Rd8
{[%clk 0:00:47.2]} 32. Qg5 {[%clk 0:00:48.6]} 32... Bxd4+ {[%clk 0:00:43.4]} 33.
Nxd4 {[%clk 0:00:43.2]} 33... Qxd4+ {[%clk 0:00:43.5]} 34. Kh1 {[%clk
0:00:43.4]} 34... h6 {[%clk 0:00:25.5]} 35. Qh4 {[%clk 0:00:39.1]} 35... g5
{[%clk 0:00:25.1]} 36. Qg3 {[%clk 0:00:37.7]} 36... Bc8 {[%clk 0:00:21.4]} 37.
h3 {[%clk 0:00:34.6]} 37... Nf6 {[%clk 0:00:20.3]} 38. Qf3 {[%clk 0:00:29.2]}
38... Kg7 {[%clk 0:00:18.6]} 39. Re7 {[%clk 0:00:24.5]} 39... Be6 {[%clk
0:00:15.6]} 40. Rc1 {[%clk 0:00:17.9]} 40... Nxb1 {[%clk 0:00:14.2]} 41. Rxb1
{[%clk 0:00:17.4]} 41... Qe4 {[%clk 0:00:15]} 42. Qf1 {[%clk 0:00:15.5]} 42...
Rd2 {[%clk 0:00:13.7]} 43. Re1 {[%clk 0:00:15.4]} 43... Qf5 {[%clk 0:00:10.5]}
44. Qe2 {[%clk 0:00:11.7]} 44... Rxe2 {[%clk 0:00:10.1]} 45. Rxe2 {[%clk
0:00:12.6]} 45... Qf1+ {[%clk 0:00:10.7]} 46. Kh2 {[%clk 0:00:12.5]} 46... Qxe2
{[%clk 0:00:11.6]} 0-1

[Event "Early-Titled-Tuesday-Blitz-January-30-2024"]
[Site "Chess.com"]
[Date "2024.01.30"]
[Round "1"]
[White "mertfelin"]
[Black "dennisodessa"]
[Result "0-1"]
[WhiteElo "2258"]
[BlackElo "2609"]
[TimeControl "180+1"]
[EndTime "8:07:52 PST"]
[Termination "dennisodessa won by resignation"]

1. e4 {[%clk 0:02:59.7]} 1... e6 {[%clk 0:02:58.7]} 2. d4 {[%clk 0:02:59.8]}
2... d5 {[%clk 0:02:59.4]} 3. Nd2 {[%clk 0:03:00.2]} 3... Be7 {[%clk 0:02:59.2]}
4. Ngf3 {[%clk 0:02:59.5]} 4... Nf6 {[%clk 0:02:59]} 5. e5 {[%clk 0:02:57.7]}
5... Nfd7 {[%clk 0:02:59.2]} 6. Bd3 {[%clk 0:02:57.3]} 6... c5 {[%clk
0:02:59.9]} 7. c3 {[%clk 0:02:56.5]} 7... Nc6 {[%clk 0:03:00.6]} 8. O-O {[%clk
0:02:56.5]} 8... cxd4 {[%clk 0:02:49.5]} 9. cxd4 {[%clk 0:02:53.5]} 9... f6
{[%clk 0:02:50.2]} 10. exf6 {[%clk 0:02:50.5]} 10... Nxf6 {[%clk 0:02:51.1]} 11.
Re1 {[%clk 0:02:48.2]} 11... O-O {[%clk 0:02:51.7]} 12. Qe2 {[%clk 0:02:43.5]}
12... Bd6 {[%clk 0:02:38.7]} 13. Nf1 {[%clk 0:02:40.6]} 13... Qb6 {[%clk
0:02:32.8]} 14. Be3 {[%clk 0:02:20.5]} 14... Bd7 {[%clk 0:02:32.2]} 15. h3
{[%clk 0:02:18.5]} 15... Nb4 {[%clk 0:02:20.4]} 16. a4 {[%clk 0:02:06.3]} 16...
Nxd3 {[%clk 0:02:17.3]} 17. Qxd3 {[%clk 0:02:07.2]} 17... Rac8 {[%clk
0:02:13.8]} 18. Ne5 {[%clk 0:02:05.2]} 18... Be8 {[%clk 0:02:04.6]} 19. Nd2
{[%clk 0:01:50.4]} 19... Qb4 {[%clk 0:02:00.8]} 20. Ndf3 {[%clk 0:01:40.4]}
20... Bxa4 {[%clk 0:01:42.5]} 21. Bd2 {[%clk 0:01:40.7]} 21... Qb5 {[%clk
0:01:31.4]} 22. Qxb5 {[%clk 0:01:40.1]} 22... Bxb5 {[%clk 0:01:32.3]} 23. Rxa7
{[%clk 0:01:40.8]} 23... Ba6 {[%clk 0:01:29.4]} 24. Ra1 {[%clk 0:01:30.8]} 24...
Ne4 {[%clk 0:01:13.6]} 25. Ba5 {[%clk 0:01:14.1]} 25... Rc2 {[%clk 0:00:57.9]}
26. b4 {[%clk 0:01:10.6]} 26... Bb8 {[%clk 0:00:30.2]} 27. Ra8 {[%clk
0:01:05.5]} 27... Bxe5 {[%clk 0:00:30.8]} 28. Rxf8+ {[%clk 0:01:05.2]} 28...
Kxf8 {[%clk 0:00:31.7]} 29. Nxe5 {[%clk 0:01:04.5]} 29... Rxf2 {[%clk
0:00:32.3]} 30. Rc1 {[%clk 0:00:57.1]} 30... g6 {[%clk 0:00:14.1]} 31. Rc7
{[%clk 0:00:51.9]} 31... Kg8 {[%clk 0:00:14.4]} 32. Re7 {[%clk 0:00:50]} 32...
h5 {[%clk 0:00:08.3]} 33. Rxe6 {[%clk 0:00:44.1]} 33... g5 {[%clk 0:00:06.7]}
34. Bd8 {[%clk 0:00:36.8]} 34... h4 {[%clk 0:00:04.6]} 35. Bxg5 {[%clk
0:00:36.3]} 35... Rf1+ {[%clk 0:00:02.7]} 36. Kh2 {[%clk 0:00:35.2]} 36... Kh7
{[%clk 0:00:03.2]} 37. Bxh4 {[%clk 0:00:31.6]} 37... Rd1 {[%clk 0:00:04.1]} 38.
Nf3 {[%clk 0:00:25.9]} 38... Nd2 {[%clk 0:00:02.8]} 39. Ng5+ {[%clk 0:00:12.4]}
39... Kg8 {[%clk 0:00:03.4]} 40. Bg3 {[%clk 0:00:11.4]} 40... Nf1+ {[%clk
0:00:03]} 41. Kg1 {[%clk 0:00:09.9]} 41... Nxg3+ {[%clk 0:00:03.9]} 42. Kf2
{[%clk 0:00:10.6]} 42... Nf5 {[%clk 0:00:04.8]} 43. Rg6+ {[%clk 0:00:10.6]}
43... Kh8 {[%clk 0:00:02.6]} 44. Rf6 {[%clk 0:00:09.3]} 44... Nxd4 {[%clk
0:00:02.1]} 45. h4 {[%clk 0:00:09.1]} 45... Kg7 {[%clk 0:00:02.7]} 46. Kg3
{[%clk 0:00:09.6]} 46... Kxf6 {[%clk 0:00:02.6]} 0-1

[Event "Early-Titled-Tuesday-Blitz-January-30-2024"]
[Site "Chess.com"]
[Date "2024.01.30"]
[Round "1"]
[White "vlad10898"]
[Black "m_ezat"]
[Result "0-1"]
[WhiteElo "2819"]
[BlackElo "2481"]
[TimeControl "180+1"]
[EndTime "8:07:53 PST"]
[Termination "m_ezat won by checkmate"]

1. d4 {[%clk 0:02:55.6]} 1... Nf6 {[%clk 0:02:58.5]} 2. Nf3 {[%clk 0:02:54.9]}
2... g6 {[%clk 0:02:52.8]} 3. g3 {[%clk 0:02:43.7]} 3... Bg7 {[%clk 0:02:45.5]}
4. Bg2 {[%clk 0:02:43.7]} 4... O-O {[%clk 0:02:37.5]} 5. O-O {[%clk 0:02:42.6]}
5... d6 {[%clk 0:02:34.4]} 6. b3 {[%clk 0:02:34.3]} 6... e5 {[%clk 0:02:21.1]}
7. dxe5 {[%clk 0:02:26.2]} 7... Nfd7 {[%clk 0:02:20.9]} 8. Bb2 {[%clk
0:02:13.2]} 8... Nc6 {[%clk 0:02:20.4]} 9. c4 {[%clk 0:02:12.2]} 9... a5 {[%clk
0:02:19.7]} 10. Nc3 {[%clk 0:02:09.8]} 10... Ndxe5 {[%clk 0:02:19.4]} 11. Qd2
{[%clk 0:02:05.7]} 11... Re8 {[%clk 0:02:14.6]} 12. Rad1 {[%clk 0:01:44.9]}
12... Bg4 {[%clk 0:02:06.6]} 13. h3 {[%clk 0:01:28.5]} 13... Bxf3 {[%clk
0:02:06.2]} 14. exf3 {[%clk 0:01:28.5]} 14... a4 {[%clk 0:01:41.1]} 15. f4
{[%clk 0:01:17.4]} 15... a3 {[%clk 0:01:32.4]} 16. Ba1 {[%clk 0:01:16.2]} 16...
Nd7 {[%clk 0:01:31.5]} 17. Nd5 {[%clk 0:01:09.4]} 17... Nf6 {[%clk 0:01:31.1]}
18. Ne3 {[%clk 0:00:40.8]} 18... Qe7 {[%clk 0:01:17.9]} 19. Rfe1 {[%clk
0:00:40.8]} 19... Qd7 {[%clk 0:01:10.1]} 20. g4 {[%clk 0:00:35.1]} 20... Ne4
{[%clk 0:01:04.2]} 21. Qc1 {[%clk 0:00:35]} 21... Bxa1 {[%clk 0:01:02]} 22. Qxa1
{[%clk 0:00:34.5]} 22... Nb4 {[%clk 0:00:52.2]} 23. g5 {[%clk 0:00:19.1]} 23...
h5 {[%clk 0:00:42.2]} 24. gxh6 {[%clk 0:00:14.1]} 24... f5 {[%clk 0:00:41.3]}
25. Bxe4 {[%clk 0:00:08.1]} 25... Rxe4 {[%clk 0:00:40.6]} 26. Nd5 {[%clk
0:00:08.5]} 26... Nxd5 {[%clk 0:00:39.4]} 27. Rxe4 {[%clk 0:00:06.1]} 27... fxe4
{[%clk 0:00:39.1]} 28. Rxd5 {[%clk 0:00:06.3]} 28... Kh7 {[%clk 0:00:37.6]} 29.
Rg5 {[%clk 0:00:04.8]} 29... Rg8 {[%clk 0:00:34.4]} 30. Qc3 {[%clk 0:00:03.9]}
30... Qe6 {[%clk 0:00:32.2]} 31. Qg3 {[%clk 0:00:02.7]} 31... Qf6 {[%clk
0:00:21.3]} 32. f5 {[%clk 0:00:02.5]} 32... Kxh6 {[%clk 0:00:17.9]} 33. Rxg6+
{[%clk 0:00:02.5]} 33... Rxg6 {[%clk 0:00:17.4]} 34. Qxg6+ {[%clk 0:00:03.2]}
34... Qxg6+ {[%clk 0:00:17.5]} 35. fxg6 {[%clk 0:00:03.7]} 35... c6 {[%clk
0:00:13.5]} 36. f3 {[%clk 0:00:03]} 36... e3 {[%clk 0:00:06.9]} 37. Kf1 {[%clk
0:00:03.1]} 37... d5 {[%clk 0:00:06.4]} 38. cxd5 {[%clk 0:00:01.8]} 38... cxd5
{[%clk 0:00:06.3]} 39. Ke2 {[%clk 0:00:02.4]} 39... d4 {[%clk 0:00:06.6]} 40.
Kd3 {[%clk 0:00:01.3]} 40... Kxg6 {[%clk 0:00:06.6]} 41. Ke2 {[%clk 0:00:01.6]}
41... Kf5 {[%clk 0:00:06.7]} 42. Kd3 {[%clk 0:00:02.2]} 42... Kf4 {[%clk
0:00:06.7]} 43. h4 {[%clk 0:00:02.6]} 43... Kxf3 {[%clk 0:00:06.1]} 44. h5
{[%clk 0:00:03.2]} 44... e2 {[%clk 0:00:06.4]} 45. h6 {[%clk 0:00:03.8]} 45...
e1=Q {[%clk 0:00:06.5]} 46. h7 {[%clk 0:00:04.7]} 46... Qc3# {[%clk 0:00:06.4]}
0-1